[Event "Championnat du monde jeunes U10"]
[Date "2024.11.24"]
[White "Dayal, Samar"]
[Black "Skouroupathis, Kyriakos"]
[WhiteElo "1818"]
[BlackElo "1695"]
[Round "9.22"]
[Result "1-0"]
[TimeControl "5400+30"]

1. e4 {[%clk 1:30:59]} 1... c6 {[%clk 1:30:56]} 2. d4 {[%clk 1:31:26]} 2... d5
{[%clk 1:31:23]} 3. exd5 {[%clk 1:31:49]} 3... cxd5 {[%clk 1:31:51]} 4. c4
{[%clk 1:32:19]} 4... Nf6 {[%clk 1:32:11]} 5. Nc3 {[%clk 1:32:46]} 5... Nc6
{[%clk 1:32:37]} 6. Nf3 {[%clk 1:33:13]} 6... Bg4 {[%clk 1:32:58]} 7. cxd5
{[%clk 1:33:39]} 7... Nxd5 {[%clk 1:33:20]} 8. Qb3 {[%clk 1:34:07]} 8... Bxf3
{[%clk 1:33:41]} 9. gxf3 {[%clk 1:34:35]} 9... e6 {[%clk 1:34:02]} 10. Qxb7
{[%clk 1:35:03]} 10... Nxd4 {[%clk 1:34:25]} 11. Bb5+ {[%clk 1:35:31]} 11...
Nxb5 {[%clk 1:34:33]} 12. Qc6+ {[%clk 1:36:00]} 12... Ke7 {[%clk 1:34:48]} 13.
Qxb5 {[%clk 1:36:29]} 13... Qd7 {[%clk 1:34:56]} 14. Nxd5+ {[%clk 1:36:52]}
14... Qxd5 {[%clk 1:35:13]} 15. Qxd5 {[%clk 1:37:13]} 15... exd5 {[%clk
1:35:38]} 16. Be3 {[%clk 1:37:41]} 16... Ke6 {[%clk 1:15:14]} 17. O-O-O {[%clk
1:38:02]} 17... Rc8+ {[%clk 1:05:36]} 18. Kb1 {[%clk 1:38:23]} 18... Bc5 {[%clk
1:05:44]} 19. Rhe1 {[%clk 1:36:23]} 19... Bxe3 {[%clk 1:03:23]} 20. fxe3 {[%clk
1:21:16]} 20... Rc4 {[%clk 1:01:25]} 21. Re2 {[%clk 1:20:14]} 21... Re8 {[%clk
0:53:09]} 22. b3 {[%clk 1:20:07]} 22... Rb4 {[%clk 0:49:49]} 23. Kb2 {[%clk
1:17:47]} 23... Reb8 {[%clk 0:46:50]} 24. Rc2 {[%clk 1:15:19]} 24... R4b6 {[%clk
0:43:22]} 25. Rc5 {[%clk 1:13:53]} 25... Rd6 {[%clk 0:41:53]} 26. Rdc1 {[%clk
1:01:29]} 26... Rb7 {[%clk 0:40:31]} 27. a3 {[%clk 1:01:09]} 27... Ke5 {[%clk
0:38:52]} 28. R1c2 {[%clk 1:00:38]} 28... Rf6 {[%clk 0:37:32]} 29. Rf2 {[%clk
0:59:59]} 29... Rfb6 {[%clk 0:33:28]} 30. b4 {[%clk 0:58:47]} 30... Kd6 {[%clk
0:33:29]} 31. Rfc2 {[%clk 0:57:23]} 31... Rb5 {[%clk 0:31:49]} 32. Rc6+ {[%clk
0:55:37]} 32... Kd7 {[%clk 0:30:19]} 33. Ra6 {[%clk 0:55:35]} 33... R5b6 {[%clk
0:30:07]} 34. Ra5 {[%clk 0:54:06]} 34... Rb5 {[%clk 0:29:57]} 35. Rc5 {[%clk
0:54:01]} 35... Rxa5 {[%clk 0:30:07]} 36. Rxa5 {[%clk 0:54:29]} 36... Kd6 {[%clk
0:30:21]} 37. Kc3 {[%clk 0:53:36]} 37... Rc7+ {[%clk 0:29:55]} 38. Kd4 {[%clk
0:54:03]} 38... Rc4+ {[%clk 0:30:06]} 39. Kd3 {[%clk 0:54:33]} 39... Rc7 {[%clk
0:30:23]} 40. Ra6+ {[%clk 0:54:10]} 40... Ke5 {[%clk 0:29:57]} 41. f4+ {[%clk
0:54:39]} 41... Kf5 {[%clk 0:30:26]} 42. Rd6 {[%clk 0:54:37]} 42... Rc1 {[%clk
0:29:49]} 43. Rxd5+ {[%clk 0:54:27]} 43... Ke6 {[%clk 0:29:51]} 44. Ra5 {[%clk
0:54:51]} 44... Rd1+ {[%clk 0:30:01]} 45. Ke4 {[%clk 0:54:12]} 45... Rd7 {[%clk
0:30:04]} 46. Re5+ {[%clk 0:53:52]} 46... Kf6 {[%clk 0:30:18]} 47. Rd5 {[%clk
0:54:20]} 47... Rc7 {[%clk 0:29:31]} 48. Kd4 {[%clk 0:54:22]} 48... Ke6 {[%clk
0:29:33]} 49. e4 {[%clk 0:54:29]} 49... f6 {[%clk 0:29:23]} 50. f5+ {[%clk
0:54:33]} 50... Ke7 {[%clk 0:29:34]} 51. Ra5 {[%clk 0:54:52]} 51... Kd6 {[%clk
0:29:20]} 52. Ra6+ {[%clk 0:55:13]} 52... Kd7 {[%clk 0:29:18]} 53. Kd5 {[%clk
0:55:43]} 53... Rb7 {[%clk 0:29:38]} 54. Rd6+ {[%clk 0:53:31]} 54... Kc7 {[%clk
0:29:44]} 55. Rc6+ {[%clk 0:53:11]} 55... Kd7 {[%clk 0:29:52]} 56. Kc5 {[%clk
0:53:39]} 56... Rb8 {[%clk 0:29:56]} 57. b5 {[%clk 0:53:23]} 57... Rb7 {[%clk
0:30:16]} 58. a4 {[%clk 0:53:44]} 58... Rb8 {[%clk 0:30:40]} 59. Rd6+ {[%clk
0:53:11]} 59... Ke7 {[%clk 0:30:52]} 60. Ra6 {[%clk 0:53:38]} 60... Rb7 1-0

[Variant "Standard"]
[Site "Europe Echecs"]

[Event "Championnat du monde jeunes U10"]
[Date "2024.11.24"]
[White "Aitmukhanov, Arsen"]
[Black "Chen, Chicheng Leon"]
[WhiteElo "1579"]
[BlackElo "1987"]
[Round "9.23"]
[Result "1-0"]
[TimeControl "5400+30"]

1. e4 {[%clk 1:30:47]} 1... c5 {[%clk 1:30:56]} 2. Nf3 {[%clk 1:31:09]} 2... e6
{[%clk 1:31:10]} 3. c3 {[%clk 1:31:34]} 3... Nf6 {[%clk 1:29:35]} 4. Qc2 {[%clk
1:26:58]} 4... d5 {[%clk 1:22:02]} 5. exd5 {[%clk 1:27:01]} 5... Nxd5 {[%clk
1:21:21]} 6. Bb5+ {[%clk 1:27:19]} 6... Bd7 {[%clk 1:18:36]} 7. Bxd7+ {[%clk
1:27:30]} 7... Nxd7 {[%clk 1:16:55]} 8. O-O {[%clk 1:27:41]} 8... Be7 {[%clk
1:15:33]} 9. d3 {[%clk 1:26:08]} 9... O-O {[%clk 1:13:32]} 10. Nbd2 {[%clk
1:20:19]} 10... Qc7 {[%clk 1:11:51]} 11. Nc4 {[%clk 1:15:38]} 11... b5 {[%clk
1:10:30]} 12. Ne3 {[%clk 1:16:01]} 12... N7f6 {[%clk 1:02:37]} 13. Nxd5 {[%clk
1:09:58]} 13... Nxd5 {[%clk 1:02:59]} 14. Bg5 {[%clk 1:10:04]} 14... Bd6 {[%clk
0:59:05]} 15. a3 {[%clk 1:07:22]} 15... a6 {[%clk 0:55:13]} 16. c4 {[%clk
1:07:32]} 16... Nb6 {[%clk 0:54:16]} 17. Rac1 {[%clk 1:05:21]} 17... Rac8 {[%clk
0:50:15]} 18. Be3 {[%clk 1:04:21]} 18... Rfd8 {[%clk 0:46:37]} 19. cxb5 {[%clk
0:55:56]} 19... axb5 {[%clk 0:46:58]} 20. b4 {[%clk 0:54:39]} 20... c4 {[%clk
0:35:57]} 21. dxc4 {[%clk 0:53:14]} 21... Nxc4 {[%clk 0:35:57]} 22. Ng5 {[%clk
0:49:43]} 22... g6 {[%clk 0:25:39]} 23. Qe4 {[%clk 0:37:40]} 23... Bxh2+ {[%clk
0:15:32]} 24. Kh1 {[%clk 0:38:04]} 24... Be5 {[%clk 0:15:51]} 25. a4 {[%clk
0:38:03]} 25... Qd6 {[%clk 0:13:49]} 26. Bc5 {[%clk 0:34:31]} 26... Qd5 {[%clk
0:11:08]} 27. Qh4 {[%clk 0:30:51]} 27... h5 {[%clk 0:09:59]} 28. axb5 {[%clk
0:29:46]} 28... Nb2 {[%clk 0:05:52]} 29. Nf3 {[%clk 0:25:29]} 29... Bg7 {[%clk
0:03:19]} 30. Rc2 {[%clk 0:23:42]} 30... Qb3 {[%clk 0:02:44]} 31. Rcc1 {[%clk
0:20:01]} 31... Nd3 {[%clk 0:02:39]} 32. Rb1 {[%clk 0:19:06]} 32... Qa4 {[%clk
0:02:38]} 33. Be7 {[%clk 0:16:50]} 33... Rd5 {[%clk 0:02:26]} 34. b6 {[%clk
0:16:47]} 34... Qb5 {[%clk 0:02:38]} 35. Bc5 {[%clk 0:16:08]} 35... Rb8 {[%clk
0:01:52]} 36. Be3 {[%clk 0:13:09]} 36... Qd7 {[%clk 0:01:40]} 37. Qc4 {[%clk
0:11:44]} 37... Nb2 {[%clk 0:01:36]} 38. Qc7 {[%clk 0:10:01]} 38... Rb7 {[%clk
0:01:44]} 39. Qxd7 {[%clk 0:09:58]} 39... Rdxd7 {[%clk 0:02:03]} 40. Rfc1 {[%clk
0:09:54]} 40... Na4 {[%clk 0:02:00]} 41. Rc8+ {[%clk 0:10:14]} 41... Bf8 {[%clk
0:02:00]} 42. Bh6 {[%clk 0:10:21]} 42... Nxb6 {[%clk 0:01:57]} 43. Rxf8+ {[%clk
0:10:41]} 43... Kh7 {[%clk 0:02:25]} 44. Be3 {[%clk 0:10:39]} 44... Nd5 {[%clk
0:02:13]} 45. Bd4 {[%clk 0:10:51]} 45... f6 {[%clk 0:02:36]} 46. Ng5+ {[%clk
0:10:59]} 46... Kh6 {[%clk 0:02:11]} 47. Nxe6 {[%clk 0:11:20]} 47... Rxb4 {[%clk
0:02:27]} 48. Rxb4 {[%clk 0:11:19]} 48... Nxb4 {[%clk 0:02:52]} 49. Bxf6 {[%clk
0:11:39]} 49... g5 {[%clk 0:03:02]} 50. Bxg5+ {[%clk 0:12:01]} 50... Kg6 {[%clk
0:03:27]} 51. Rf6+ {[%clk 0:12:23]} 51... Kh7 {[%clk 0:03:51]} 52. Nf8+ {[%clk
0:12:46]} 1-0

[Variant "Standard"]
[Site "Europe Echecs"]

[Event "Championnat du monde jeunes U10"]
[Date "2024.11.24"]
[White "Deepak Ambattu, Rithvik"]
[Black "Buklaho, Ignacy"]
[WhiteElo "2063"]
[BlackElo "1822"]
[Round "9.24"]
[Result "1-0"]
[TimeControl "5400+30"]

1. e4 {[%clk 1:30:58]} 1... c5 {[%clk 1:30:49]} 2. Nf3 {[%clk 1:31:17]} 2... e6
{[%clk 1:31:11]} 3. d4 {[%clk 1:31:39]} 3... cxd4 {[%clk 1:31:36]} 4. Nxd4
{[%clk 1:32:06]} 4... Nf6 {[%clk 1:31:55]} 5. Nc3 {[%clk 1:32:33]} 5... Nc6
{[%clk 1:32:16]} 6. Ndb5 {[%clk 1:32:53]} 6... Bb4 {[%clk 1:32:34]} 7. a3 {[%clk
1:33:18]} 7... Bxc3+ {[%clk 1:32:53]} 8. Nxc3 {[%clk 1:33:46]} 8... d5 {[%clk
1:33:07]} 9. exd5 {[%clk 1:34:08]} 9... exd5 {[%clk 1:33:29]} 10. Bd3 {[%clk
1:34:32]} 10... O-O {[%clk 1:33:43]} 11. O-O {[%clk 1:34:12]} 11... Bg4 {[%clk
1:33:43]} 12. Ne2 {[%clk 1:20:48]} 12... Re8 {[%clk 1:31:19]} 13. Be3 {[%clk
1:09:30]} 13... h6 {[%clk 1:22:54]} 14. Re1 {[%clk 1:03:55]} 14... d4 {[%clk
1:12:28]} 15. Bf4 {[%clk 1:02:32]} 15... Qb6 {[%clk 1:11:20]} 16. Qc1 {[%clk
0:53:06]} 16... Bxe2 {[%clk 1:02:27]} 17. Rxe2 {[%clk 0:52:42]} 17... Rxe2
{[%clk 0:58:07]} 18. Bxe2 {[%clk 0:53:10]} 18... Nd5 {[%clk 0:54:00]} 19. Bg3
{[%clk 0:49:52]} 19... Re8 {[%clk 0:50:26]} 20. Bf3 {[%clk 0:45:51]} 20... Nf6
{[%clk 0:49:09]} 21. Rb1 {[%clk 0:39:00]} 21... Qc5 {[%clk 0:44:08]} 22. Qd2
{[%clk 0:30:00]} 22... Qc4 {[%clk 0:39:22]} 23. b3 {[%clk 0:23:16]} 23... Qe6
{[%clk 0:30:11]} 24. Kf1 {[%clk 0:21:43]} 24... Qf5 {[%clk 0:29:36]} 25. Re1
{[%clk 0:18:02]} 25... Rxe1+ {[%clk 0:28:40]} 26. Kxe1 {[%clk 0:18:23]} 26...
Qc5 {[%clk 0:26:22]} 27. b4 {[%clk 0:14:03]} 27... Qc4 {[%clk 0:24:15]} 28. Qd3
{[%clk 0:13:02]} 28... Qe6+ {[%clk 0:21:08]} 29. Kd2 {[%clk 0:12:24]} 29... a6
{[%clk 0:19:05]} 30. Qe2 {[%clk 0:07:26]} 30... Qd7 {[%clk 0:15:01]} 31. Qc4
{[%clk 0:07:06]} 31... Ne7 {[%clk 0:06:13]} 32. Qc7 {[%clk 0:06:40]} 32... Qe6
{[%clk 0:05:24]} 33. Qxb7 {[%clk 0:06:14]} 33... Ned5 {[%clk 0:05:10]} 34. Qb8+
{[%clk 0:06:20]} 34... Kh7 {[%clk 0:03:58]} 35. Qe5 {[%clk 0:06:41]} 35... Qd7
{[%clk 0:03:13]} 36. Qxd4 {[%clk 0:06:37]} 36... g5 {[%clk 0:02:17]} 37. c4
{[%clk 0:06:14]} 37... Nb6 {[%clk 0:02:24]} 38. Qxd7 {[%clk 0:06:34]} 38...
Nfxd7 {[%clk 0:02:46]} 39. c5 {[%clk 0:06:37]} 39... Nc4+ {[%clk 0:02:13]} 40.
Kd3 {[%clk 0:06:52]} 40... Nxa3 {[%clk 0:02:14]} 41. c6 {[%clk 0:06:47]} 41...
Nb6 {[%clk 0:02:06]} 42. c7 {[%clk 0:06:37]} 42... Nb5 {[%clk 0:01:30]} 43. Bg4
{[%clk 0:06:20]} 43... Na7 {[%clk 0:01:33]} 44. Bd6 {[%clk 0:03:30]} 44... Kg6
{[%clk 0:01:04]} 45. Bc5 {[%clk 0:03:54]} 45... f5 {[%clk 0:01:20]} 46. Bxb6
{[%clk 0:04:15]} 46... Nc8 {[%clk 0:01:37]} 47. Bf3 {[%clk 0:04:39]} 47... Nxb6
{[%clk 0:01:55]} 48. Bb7 {[%clk 0:05:03]} 48... f4 {[%clk 0:02:18]} 49. c8=Q
{[%clk 0:05:25]} 49... Nxc8 {[%clk 0:02:44]} 50. Bxc8 {[%clk 0:05:46]} 50... h5
{[%clk 0:02:41]} 51. Bxa6 {[%clk 0:06:12]} 51... g4 {[%clk 0:02:58]} 52. Ke4
{[%clk 0:06:19]} 52... Kg5 {[%clk 0:03:10]} 53. b5 {[%clk 0:06:44]} 53... g3
{[%clk 0:03:19]} 54. fxg3 {[%clk 0:07:04]} 54... Kg4 {[%clk 0:03:28]} 55. b6
{[%clk 0:07:17]} 55... fxg3 {[%clk 0:03:47]} 56. h3+ {[%clk 0:07:40]} 56... Kh4
{[%clk 0:04:07]} 57. b7 {[%clk 0:07:57]} 57... Kg5 {[%clk 0:04:25]} 58. b8=Q
{[%clk 0:08:21]} 58... h4 {[%clk 0:04:43]} 59. Qd6 {[%clk 0:07:57]} 59... Kh5
{[%clk 0:05:04]} 60. Ke5 {[%clk 0:08:08]} 60... Kg5 {[%clk 0:05:20]} 61. Qf6+
{[%clk 0:07:33]} 61... Kh5 {[%clk 0:05:39]} 62. Be2# {[%clk 0:07:55]} 1-0

[Variant "Standard"]
[Site "Europe Echecs"]

[Event "Championnat du monde jeunes U10"]
[Date "2024.11.24"]
[White "Ten Dam, Bram"]
[Black "Zhang, Oscar Y"]
[WhiteElo "2012"]
[BlackElo "1817"]
[Round "9.25"]
[Result "0-1"]
[TimeControl "5400+30"]

1. e4 {[%clk 1:30:57]} 1... c5 {[%clk 1:30:55]} 2. Nf3 {[%clk 1:31:21]} 2... d6
{[%clk 1:31:19]} 3. d4 {[%clk 1:31:45]} 3... cxd4 {[%clk 1:31:43]} 4. Nxd4
{[%clk 1:32:11]} 4... Nf6 {[%clk 1:31:59]} 5. Nc3 {[%clk 1:32:36]} 5... a6
{[%clk 1:32:21]} 6. Bg5 {[%clk 1:32:47]} 6... e6 {[%clk 1:32:42]} 7. f4 {[%clk
1:33:12]} 7... Be7 {[%clk 1:32:58]} 8. Qf3 {[%clk 1:33:35]} 8... Qc7 {[%clk
1:33:12]} 9. O-O-O {[%clk 1:33:50]} 9... Nbd7 {[%clk 1:33:35]} 10. Bd3 {[%clk
1:34:13]} 10... O-O {[%clk 1:30:43]} 11. Qh3 {[%clk 1:29:30]} 11... b5 {[%clk
1:16:28]} 12. Rhe1 {[%clk 1:24:21]} 12... Nc5 {[%clk 0:59:19]} 13. e5 {[%clk
1:19:39]} 13... dxe5 {[%clk 0:58:04]} 14. fxe5 {[%clk 1:19:13]} 14... Nxd3+
{[%clk 0:57:09]} 15. Rxd3 {[%clk 1:19:27]} 15... Nd5 {[%clk 0:51:04]} 16. Rg3
{[%clk 1:10:08]} 16... Bxg5+ {[%clk 0:39:15]} 17. Rxg5 {[%clk 1:10:10]} 17...
Nf4 {[%clk 0:39:38]} 18. Qe3 {[%clk 0:43:35]} 18... Ng6 {[%clk 0:38:13]} 19. Rh5
{[%clk 0:35:27]} 19... Bb7 {[%clk 0:37:26]} 20. Nce2 {[%clk 0:30:56]} 20... Qa5
{[%clk 0:32:18]} 21. Nc3 {[%clk 0:28:18]} 21... b4 {[%clk 0:30:53]} 22. Nb3
{[%clk 0:27:02]} 22... Qc7 {[%clk 0:30:47]} 23. Ne4 {[%clk 0:21:28]} 23... Rac8
{[%clk 0:28:01]} 24. Re2 {[%clk 0:18:00]} 24... Bxe4 {[%clk 0:24:21]} 25. Qxe4
{[%clk 0:18:20]} 25... a5 {[%clk 0:24:35]} 26. Rh3 {[%clk 0:14:52]} 26... Rfd8
{[%clk 0:24:18]} 27. Rd2 {[%clk 0:07:39]} 27... a4 {[%clk 0:23:19]} 28. Rxd8+
{[%clk 0:07:12]} 28... Rxd8 {[%clk 0:23:40]} 29. Nd2 {[%clk 0:06:37]} 29... Qc5
{[%clk 0:18:04]} 30. Qe3 {[%clk 0:01:16]} 30... Qd5 {[%clk 0:17:02]} 31. Rf3
{[%clk 0:00:47]} 31... Nxe5 {[%clk 0:14:07]} 32. Rf4 {[%clk 0:00:44]} 32... Qxg2
{[%clk 0:12:13]} 33. Nf1 {[%clk 0:00:37]} 33... Qd5 {[%clk 0:11:35]} 34. Nd2
{[%clk 0:00:51]} 34... Qh1+ {[%clk 0:07:26]} 35. Rf1 {[%clk 0:01:07]} 35... Qg2
{[%clk 0:06:35]} 36. Rg1 {[%clk 0:01:00]} 36... Qxd2+ {[%clk 0:06:14]} 0-1

[Variant "Standard"]
[Site "Europe Echecs"]

[Event "Championnat du monde jeunes U10"]
[Date "2024.11.24"]
[White "Chakhalov, Mikael"]
[Black "Cao, Frank Zhongtian"]
[WhiteElo "1962"]
[BlackElo "1793"]
[Round "9.26"]
[Result "0-1"]
[TimeControl "5400+30"]

1. e4 {[%clk 1:30:51]} 1... c5 {[%clk 1:30:56]} 2. Nf3 {[%clk 1:31:17]} 2... d6
{[%clk 1:31:20]} 3. d4 {[%clk 1:31:42]} 3... cxd4 {[%clk 1:31:42]} 4. Nxd4
{[%clk 1:32:09]} 4... Nf6 {[%clk 1:32:03]} 5. Nc3 {[%clk 1:32:33]} 5... a6
{[%clk 1:32:26]} 6. f3 {[%clk 1:32:47]} 6... e5 {[%clk 1:32:46]} 7. Nb3 {[%clk
1:33:13]} 7... Be7 {[%clk 1:33:09]} 8. Be3 {[%clk 1:33:30]} 8... Be6 {[%clk
1:33:32]} 9. Qd2 {[%clk 1:33:45]} 9... O-O {[%clk 1:33:50]} 10. O-O-O {[%clk
1:34:07]} 10... Nbd7 {[%clk 1:34:14]} 11. g4 {[%clk 1:34:22]} 11... b5 {[%clk
1:34:35]} 12. g5 {[%clk 1:34:33]} 12... Nh5 {[%clk 1:35:03]} 13. Nd5 {[%clk
1:34:50]} 13... Bxd5 14. exd5 {[%clk 1:35:18]} 14... f6 {[%clk 1:35:45]} 15.
gxf6 {[%clk 1:35:36]} 15... Bxf6 {[%clk 1:36:10]} 16. Na5 {[%clk 1:35:48]} 16...
Qe8 {[%clk 1:36:31]} 17. Nc6 {[%clk 1:35:32]} 17... Bd8 {[%clk 1:36:01]} 18. Kb1
{[%clk 1:32:28]} 18... Bb6 {[%clk 1:34:33]} 19. c4 {[%clk 1:28:14]} 19... bxc4
{[%clk 1:28:43]} 20. Bxc4 {[%clk 1:28:21]} 20... Bxe3 {[%clk 1:27:52]} 21. Qxe3
{[%clk 1:28:49]} 21... Nf4 {[%clk 1:16:30]} 22. Rhg1 {[%clk 1:27:02]} 22... Kh8
{[%clk 1:15:07]} 23. Rg3 {[%clk 1:15:46]} 23... Nh5 {[%clk 0:53:03]} 24. Rg4
{[%clk 1:05:08]} 24... Rf4 {[%clk 0:46:50]} 25. Rxf4 {[%clk 1:02:31]} 25... Nxf4
{[%clk 0:46:02]} 26. Rg1 {[%clk 0:48:34]} 26... Qh5 {[%clk 0:27:35]} 27. Qb3
{[%clk 0:31:11]} 27... Nc5 {[%clk 0:21:03]} 28. Qb6 {[%clk 0:30:22]} 28... Qxh2
{[%clk 0:16:40]} 29. Rf1 {[%clk 0:25:35]} 29... e4 {[%clk 0:11:20]} 30. Nb8
{[%clk 0:16:21]} 30... h6 {[%clk 0:07:12]} 31. Qxd6 {[%clk 0:12:09]} 31... e3
{[%clk 0:04:47]} 32. Qxc5 {[%clk 0:10:31]} 32... Rxb8 {[%clk 0:05:05]} 33. b3
{[%clk 0:10:33]} 33... e2 {[%clk 0:04:05]} 34. Re1 {[%clk 0:10:31]} 34... Qg3
{[%clk 0:03:20]} 35. Qg1 {[%clk 0:10:31]} 35... Qxf3 {[%clk 0:02:49]} 36. Qd4
{[%clk 0:09:32]} 36... Qg3 {[%clk 0:01:26]} 37. Qd2 {[%clk 0:09:41]} 37... Rd8
{[%clk 0:01:16]} 38. Kb2 {[%clk 0:06:13]} 38... Qg5 {[%clk 0:00:41]} 39. Bxe2
{[%clk 0:05:56]} 39... Rxd5 {[%clk 0:00:41]} 40. Qc2 {[%clk 0:05:58]} 40... Qf6+
{[%clk 0:00:42]} 41. Kb1 {[%clk 0:05:58]} 41... Nxe2 {[%clk 0:00:41]} 42. Rxe2
{[%clk 0:06:15]} 42... Qf1+ {[%clk 0:00:50]} 43. Kb2 {[%clk 0:06:38]} 43... Qf6+
{[%clk 0:01:15]} 44. Kb1 {[%clk 0:07:02]} 44... Qf5 {[%clk 0:00:46]} 45. Qxf5
{[%clk 0:05:59]} 45... Rxf5 {[%clk 0:01:12]} 46. Kc2 {[%clk 0:05:40]} 46... h5
{[%clk 0:01:13]} 47. Kc3 {[%clk 0:05:57]} 47... Kh7 {[%clk 0:01:02]} 48. Kc4
{[%clk 0:06:02]} 48... Rf6 {[%clk 0:00:44]} 49. b4 {[%clk 0:06:06]} 49... g5
{[%clk 0:00:40]} 50. a4 {[%clk 0:06:20]} 50... g4 {[%clk 0:00:43]} 51. Rg2
{[%clk 0:06:02]} 51... Kg6 {[%clk 0:01:02]} 52. b5 {[%clk 0:06:14]} 52... axb5+
{[%clk 0:01:24]} 53. axb5 {[%clk 0:06:42]} 53... Kg5 {[%clk 0:01:30]} 54. Kd4
{[%clk 0:06:07]} 54... h4 {[%clk 0:01:00]} 55. Rb2 {[%clk 0:05:49]} 55... g3
{[%clk 0:00:44]} 56. Ke3 {[%clk 0:03:52]} 56... h3 {[%clk 0:00:44]} 57. b6
{[%clk 0:03:50]} 57... g2 {[%clk 0:00:37]} 58. Rb5+ {[%clk 0:02:54]} 58... Kg6
{[%clk 0:00:40]} 59. b7 {[%clk 0:02:56]} 59... g1=Q+ {[%clk 0:00:54]} 60. Kd2
{[%clk 0:03:03]} 60... Qg2+ {[%clk 0:01:03]} 61. Kc3 {[%clk 0:03:16]} 61... Qc6+
{[%clk 0:01:21]} 62. Kb4 {[%clk 0:03:34]} 62... Rf4+ {[%clk 0:01:34]} 63. Ka5
{[%clk 0:03:56]} 63... Qxb5+ {[%clk 0:01:45]} 64. Kxb5 {[%clk 0:04:15]} 64...
Rf8 {[%clk 0:02:09]} 0-1

[Variant "Standard"]
[Site "Europe Echecs"]

[Event "Championnat du monde jeunes U10"]
[Date "2024.11.24"]
[White "Larion, Iustin"]
[Black "Blekh, Erik"]
[WhiteElo "1925"]
[BlackElo "1790"]
[Round "9.27"]
[Result "1-0"]
[TimeControl "5400+30"]

1. d4 {[%clk 1:30:53]} 1... Nf6 {[%clk 1:30:44]} 2. Nf3 {[%clk 1:31:08]} 2... g6
{[%clk 1:30:54]} 3. Nbd2 {[%clk 1:31:30]} 3... d5 {[%clk 1:30:53]} 4. e3 {[%clk
1:31:49]} 4... Bg7 {[%clk 1:31:01]} 5. b4 {[%clk 1:32:09]} 5... a5 {[%clk
1:30:43]} 6. b5 {[%clk 1:32:20]} 6... c5 {[%clk 1:29:59]} 7. c4 {[%clk 1:24:15]}
7... O-O {[%clk 1:28:03]} 8. Bb2 {[%clk 1:22:55]} 8... cxd4 {[%clk 1:27:00]} 9.
Bxd4 {[%clk 1:20:38]} 9... b6 {[%clk 1:20:42]} 10. Rc1 {[%clk 1:14:40]} 10...
Nbd7 {[%clk 1:16:10]} 11. cxd5 {[%clk 1:13:59]} 11... Nxd5 {[%clk 1:16:17]} 12.
Bxg7 {[%clk 1:13:13]} 12... Kxg7 {[%clk 1:16:36]} 13. Bc4 {[%clk 1:12:34]} 13...
Bb7 {[%clk 1:14:43]} 14. O-O {[%clk 1:11:56]} 14... Nc5 {[%clk 1:11:31]} 15. Nb3
{[%clk 1:05:19]} 15... Nxb3 {[%clk 1:06:20]} 16. Qxb3 {[%clk 1:03:04]} 16... e6
{[%clk 1:06:01]} 17. Ne5 {[%clk 0:52:57]} 17... Rc8 {[%clk 1:04:04]} 18. Be2
{[%clk 0:48:13]} 18... Qd6 {[%clk 1:00:15]} 19. Nc4 {[%clk 0:42:59]} 19... Qe7
{[%clk 0:59:09]} 20. Bf3 {[%clk 0:41:54]} 20... Kg8 {[%clk 0:52:20]} 21. e4
{[%clk 0:34:32]} 21... Nf6 {[%clk 0:52:14]} 22. Qe3 {[%clk 0:33:14]} 22... Qb4
{[%clk 0:47:05]} 23. a3 {[%clk 0:32:47]} 23... Qc5 {[%clk 0:45:45]} 24. Qf4
{[%clk 0:26:02]} 24... Nh5 {[%clk 0:45:27]} 25. Bxh5 {[%clk 0:24:25]} 25... Qxh5
{[%clk 0:45:48]} 26. Nd6 {[%clk 0:22:52]} 26... Rxc1 {[%clk 0:45:37]} 27. Rxc1
{[%clk 0:21:28]} 27... Ba8 {[%clk 0:45:41]} 28. h3 {[%clk 0:15:56]} 28... e5
{[%clk 0:43:11]} 29. Qf6 {[%clk 0:13:12]} 29... Qh6 {[%clk 0:41:16]} 30. Rc7
{[%clk 0:13:18]} 30... Qf4 {[%clk 0:39:51]} 31. Qxf4 {[%clk 0:12:39]} 31... exf4
{[%clk 0:40:16]} 32. Rc8 {[%clk 0:13:00]} 32... Rxc8 {[%clk 0:40:29]} 33. Nxc8
{[%clk 0:13:28]} 33... Bxe4 {[%clk 0:40:52]} 34. Nxb6 {[%clk 0:13:50]} 34... Bd3
{[%clk 0:40:43]} 35. a4 {[%clk 0:14:13]} 35... Bc2 {[%clk 0:41:04]} 36. Nc4
{[%clk 0:14:35]} 36... Bxa4 {[%clk 0:41:06]} 37. b6 {[%clk 0:14:58]} 37... Bc6
{[%clk 0:41:30]} 38. Nxa5 {[%clk 0:15:22]} 38... Bd5 {[%clk 0:41:46]} 39. b7
{[%clk 0:15:07]} 39... Bxb7 {[%clk 0:42:07]} 40. Nxb7 {[%clk 0:15:33]} 40... Kg7
{[%clk 0:42:32]} 41. Kf1 {[%clk 0:15:47]} 41... g5 {[%clk 0:42:54]} 42. Ke2
{[%clk 0:16:10]} 42... f5 {[%clk 0:43:19]} 43. Kf3 {[%clk 0:16:30]} 43... h5
{[%clk 0:43:44]} 44. Nc5 {[%clk 0:16:49]} 44... Kg6 {[%clk 0:44:04]} 45. Nd3
{[%clk 0:17:00]} 45... Kf6 {[%clk 0:44:27]} 46. Nxf4 {[%clk 0:17:18]} 46... gxf4
{[%clk 0:44:45]} 47. Kxf4 {[%clk 0:17:46]} 47... Kg6 {[%clk 0:44:21]} 48. h4
{[%clk 0:18:03]} 48... Kf6 {[%clk 0:44:46]} 49. g3 {[%clk 0:18:25]} 1-0

[Variant "Standard"]
[Site "Europe Echecs"]